bitfinex/quotes_ETHUSD_20241003
["timestamp","ask_amount","ask_price","bid_price","bid_amount"]
[1727991350141,5.02611,2353.5,2353.1,2.42798624]
[1727991350431,4.24925,2353.4,2353.2,0.1002634]
[1727991352469,4.24935,2353.3,2353.2,0.6502634]
[1727991353145,4.24919,2353.4,2353.2,0.6502634]
[1727991354034,5.02611,2353.5,2353.2,0.6502634]
[1727991354243,4.2492,2353.4,2353.2,0.6502634]
[1727991356393,4.24935,2353.3,2353.2,0.1002634]
[1727991360777,4.2492,2353.4,2353.2,0.1002634]
[1727991361197,8.49855,2353.4,2353.2,0.1002634]
[1727991366280,4.24935,2353.3,2353.2,0.1002634]
[1727991370780,4.24935,2353.3,2353.0,0.55]
[1727991370980,4.24935,2353.3,2353.1,0.09703826]
[1727991371437,4.24953,2353.2,2353.1,0.09703826]
[1727991373407,4.24935,2353.3,2353.1,0.09703826]
[1727991373620,8.49884,2353.3,2353.1,0.09703826]
[1727991377937,4.24953,2353.2,2353.1,0.09703826]
[1727991382445,4.24905,2353.5,2353.2,0.55]
[1727991382651,4.24905,2353.5,2353.1,2.22752695]
[1727991382652,7.31,2353.9,2353.5,4.24898]
[1727991382858,0.821,2354.1,2353.7,0.55]
[1727991383013,0.821,2354.1,2353.8,1.87798624]
[1727991383212,5.21294792,2354.2,2353.9,0.55]
[1727991383433,9.46083792,2354.2,2353.9,0.64638696]
[1727991383726,8.49568,2354.2,2353.9,0.64638696]
[1727991384248,4.24793,2354.1,2353.9,0.64638696]
[1727991385717,8.49564,2354.2,2353.9,0.64638696]
[1727991385918,4.24778,2354.2,2353.9,0.64638696]
[1727991386557,8.49565,2354.2,2353.9,0.64638696]
[1727991386855,4.24792,2354.1,2353.9,0.64638696]
[1727991387055,4.24778,2354.2,2353.9,0.89882428]
[1727991387225,8.49565,2354.2,2353.9,0.89882428]
[1727991387545,4.24778,2354.2,2353.9,0.89882428]
[1727991387756,4.24792,2354.1,2353.9,0.89882428]
[1727991388449,8.49561,2354.2,2353.9,0.89882428]
[1727991388967,4.24792,2354.1,2353.9,0.89882428]
[1727991394307,4.24778,2354.2,2353.9,0.89882428]
[1727991394625,8.49562,2354.2,2353.9,0.89882428]
[1727991394830,4.24778,2354.2,2353.9,0.89882428]
[1727991395038,8.49563,2354.2,2354.0,0.27768105]
[1727991395183,8.49563,2354.2,2354.0,0.09579997]
[1727991395527,4.2479,2354.1,2354.0,0.64579997]
[1727991396319,8.49563,2354.2,2354.0,0.64579997]
[1727991396513,4.2479,2354.1,2354.0,0.64579997]
[1727991399655,8.49568,2354.2,2354.0,0.64579997]
[1727991399873,4.2479,2354.1,2354.0,0.64579997]
[1727991400647,4.24773,2354.2,2354.0,0.64579997]
[1727991401157,8.49561,2354.2,2354.0,0.64579997]
[1727991401500,4.2479,2354.1,2354.0,0.64579997]
[1727991402563,8.49559,2354.2,2354.0,0.64579997]
[1727991402845,8.49556,2354.2,2354.0,0.64579997]
[1727991405638,4.24773,2354.2,2354.0,0.64579997]
[1727991406179,4.2479,2354.1,2354.0,0.64579997]
[1727991407675,8.49561,2354.2,2354.0,0.64579997]
[1727991408454,8.49563,2354.2,2354.0,0.64579997]
[1727991408847,4.24773,2354.2,2354.0,0.64579997]
[1727991409065,4.2479,2354.1,2354.0,0.64579997]
[1727991419792,4.1479,2354.1,2354.0,0.64579997]
[1727991421827,4.1479,2354.1,2354.0,0.09579997]
[1727991422138,4.24814,2354.0,2353.5,6.12688624]
[1727991422354,4.24814,2354.0,2353.6,2.37621062]
[1727991423330,8.3959,2354.1,2353.6,6.62501062]
[1727991424428,4.1479,2354.1,2353.6,6.62493062]
[1727991424602,4.1479,2354.1,2353.6,4.88368536]
[1727991424944,8.39592,2354.1,2353.6,4.88368536]
[1727991425699,9.22672,2354.1,2353.6,4.79872]
[1727991427404,9.22672,2354.1,2353.8,0.55]
[1727991427890,4.9787,2354.1,2353.8,0.55]
[1727991428255,9.2267,2354.1,2353.8,0.55]
[1727991428790,4.9787,2354.1,2353.8,0.55]
[1727991432902,4.9787,2354.1,2353.9,0.09582344]
[1727991436390,4.24808,2354.0,2353.9,0.09582344]
[1727991436765,4.24808,2354.0,2353.7,1.32871147]
[1727991436994,4.24808,2354.0,2353.9,0.09582677]
[1727991437606,4.24808,2354.0,2353.7,1.32871147]
[1727991437768,4.24808,2354.0,2353.9,0.09582677]
[1727991438264,4.24808,2354.0,2353.7,0.55]
[1727991438468,4.24808,2354.0,2353.8,0.09590691]
[1727991439519,5.03066,2353.9,2353.8,0.09590691]
[1727991440240,5.03066,2353.9,2353.5,0.55]
[1727991440408,5.03066,2353.9,2353.8,0.09597024]
[1727991440570,5.03066,2353.9,2353.5,0.55]
[1727991440772,5.03066,2353.9,2353.8,0.09597024]
[1727991441388,5.03066,2353.9,2353.5,0.55]
[1727991441587,5.03066,2353.9,2353.8,0.09597024]
[1727991441789,5.03066,2353.9,2353.5,0.55]
[1727991442310,5.03066,2353.9,2353.6,0.09613054]
[1727991444568,4.24862,2353.7,2353.6,0.09613054]
[1727991445013,4.24862,2353.7,2353.3,0.55]
[1727991445473,4.24862,2353.7,2353.4,0.08739435]
[1727991448715,8.49733,2353.7,2353.4,0.08739435]
[1727991449640,4.24862,2353.7,2353.4,0.08739435]
[1727991451633,4.24881,2353.6,2353.4,0.08739435]
[1727991452536,4.24862,2353.7,2353.4,0.08739435]
[1727991456457,9.27923,2353.9,2353.4,0.76388341]
[1727991456661,0.8185,2354.2,2353.8,1.87798624]
[1727991456818,4.24763,2354.3,2353.9,0.55]
[1727991457019,0.8185,2354.4,2354.0,1.87798624]
[1727991457218,4.24732,2354.5,2354.1,0.55]
[1727991457551,4.24732,2354.5,2354.1,0.63703335]
[1727991458143,8.49465,2354.5,2354.1,0.63703335]
[1727991458354,4.24738,2354.4,2354.1,0.63703335]
[1727991461052,4.24732,2354.5,2354.1,0.63703335]
[1727991461255,8.49462,2354.5,2354.2,0.74394426]
[1727991461468,4.2466,2354.9,2354.5,0.55]
[1727991461703,4.2466,2354.9,2354.6,1.9642557]
[1727991461704,4.24675,2354.8,2354.6,1.9642557]
[1727991461837,8.49317,2354.9,2354.7,0.55]
[1727991462037,4.24664,2354.8,2354.7,0.55]
[1727991462936,4.24664,2354.8,2354.7,0.63618271]
[1727991464080,0.8185,2355.2,2354.7,0.88759961]
[1727991464373,4.24589,2355.3,2355.0,0.55]
[1727991464673,4.24589,2355.3,2355.1,0.08572916]
[1727991465983,4.24587,2355.3,2355.1,0.08572916]
[1727991467294,4.24592,2355.2,2355.1,0.08572916]
[1727991471913,4.99762,2355.2,2355.1,0.08572916]
[1727991472066,8.846799,2355.2,2355.1,0.08572916]
[1727991472265,4.24758,2354.3,2354.0,1.87798624]
[1727991472466,4.24758,2354.3,2354.1,0.08319559]
[1727991473579,4.24758,2354.3,2354.2,0.55]
[1727991473897,4.24758,2354.3,2354.2,0.62277676]
[1727991474093,8.49462,2354.5,2354.2,0.62277676]
[1727991474767,4.24727,2354.5,2354.2,0.62277676]
[1727991475094,4.24738,2354.4,2354.2,0.62277676]
[1727991476774,4.24727,2354.5,2354.2,0.62277676]
[1727991479704,0.7517,2354.6,2354.2,0.62277676]
[1727991480314,4.9988,2354.6,2354.2,0.62277676]
[1727991481491,4.24695,2354.7,2354.4,1.87798624]
[1727991481808,4.24658,2354.9,2354.5,0.62276218]
[1727991482012,4.24668,2354.8,2354.5,0.62276218]
[1727991484227,4.24658,2354.9,2354.5,0.62276218]
[1727991484416,4.24685,2354.7,2354.5,0.62276218]
[1727991484615,4.24685,2354.7,2354.5,0.88133103]
[1727991485394,8.49381,2354.7,2354.5,0.88133103]
[1727991485596,4.24685,2354.7,2354.5,0.88133103]
[1727991488490,4.24665,2354.8,2354.5,0.88133103]
[1727991488692,4.24659,2354.9,2354.5,0.88133103]
[1727991488939,8.49322,2354.9,2354.5,0.88133103]
[1727991489432,8.49322,2354.9,2354.7,0.55]
[1727991489630,8.49322,2354.9,2354.6,0.55]
[1727991489798,4.24666,2354.8,2354.6,0.55]
[1727991489993,4.24666,2354.8,2354.7,0.62259535]
[1727991491636,4.24666,2354.8,2354.7,0.07259535]
[1727991491839,5.05216,2354.8,2354.7,0.07259535]
[1727991492133,4.24728,2354.5,2354.3,1.87798624]
[1727991492509,4.24728,2354.5,2354.4,0.07281239]
[1727991497419,5.05278,2354.5,2354.4,0.07281239]
[1727991497740,4.24746,2354.4,2354.1,0.55]
[1727991498050,4.24746,2354.4,2354.1,1.09279862]
[1727991498403,4.24746,2354.4,2354.1,2.97078486]
[1727991498804,4.24728,2354.5,2354.1,2.97078486]
[1727991500637,4.24701,2354.6,2354.1,2.97078486]
[1727991502993,4.24701,2354.6,2354.1,7.21865486]
[1727991503126,4.24701,2354.6,2354.3,0.55]
[1727991504109,5.01197,2354.7,2354.3,0.5245925]
[1727991504317,5.01197,2354.7,2354.2,0.55]
[1727991505440,5.01197,2354.7,2354.0,5.57729661]
[1727991505441,0.7651,2354.7,2354.0,1.32930661]
[1727991505736,0.7651,2354.3,2354.0,1.32930661]
[1727991505927,5.01269,2354.3,2354.0,1.32930661]
[1727991506125,0.7651,2354.3,2354.1,0.55]
[1727991507831,0.7651,2354.3,2354.2,0.07315521]
[1727991510706,1.266358,2354.3,2354.2,0.07315521]
[1727991510905,4.248,2354.1,2353.6,1.75550661]
[1727991511137,5.01319,2354.0,2353.6,0.4262]
[1727991511343,4.24844,2353.8,2353.7,0.07355587]
[1727991511506,5.01354,2353.8,2353.7,0.07355587]
[1727991511855,5.939722,2353.8,2353.7,0.07355587]
[1727991512225,5.939722,2353.8,2353.2,0.4262]
[1727991512226,4.24869,2353.7,2353.2,0.4262]
[1727991512620,4.24922,2353.4,2353.2,0.4262]
[1727991512954,5.01459,2353.3,2353.0,0.4262]
[1727991513452,0.7651,2353.3,2353.0,0.4262]
[1727991513849,1.266532,2353.3,2353.0,0.4262]
[1727991514226,1.266532,2353.3,2352.9,0.55]
[1727991514861,5.515882,2353.3,2352.9,0.55]
[1727991515062,1.266532,2353.3,2352.9,0.55]
[1727991515503,5.515962,2353.3,2352.6,4.67669]
[1727991515767,0.9765182,2353.2,2352.7,1.87798624]
[1727991516063,5.2260782,2353.2,2352.7,1.87798624]
[1727991516564,0.7806,2353.0,2352.7,1.87798624]
[1727991517729,0.7806,2353.0,2352.6,0.44395546]
[1727991518297,5.0305,2353.0,2352.6,0.44395546]
[1727991519196,0.7806,2353.0,2352.7,1.87798624]
[1727991519363,7.31,2353.6,2353.0,0.55]
[1727991519559,7.31,2353.6,2353.3,1.87798624]
[1727991519862,5.02929,2353.7,2353.3,1.87798624]
[1727991520500,0.7806,2354.0,2353.4,0.55]
[1727991520709,4.24847,2353.8,2353.4,0.55]
[1727991521002,4.24847,2353.8,2353.5,1.87798624]
[1727991521593,4.24847,2353.8,2353.4,0.55]
[1727991521766,8.49708,2353.8,2353.4,0.55]
[1727991522263,4.24847,2353.8,2353.4,0.55]
[1727991522612,8.49701,2353.8,2353.4,0.55]
[1727991522768,8.49701,2353.8,2353.5,0.07225108]
[1727991523399,4.24872,2353.7,2353.5,0.07225108]
[1727991526177,4.24881,2353.6,2353.5,0.62225108]
[1727991529623,4.24057637,2353.6,2353.5,0.62225108]
[1727991534630,4.24057637,2353.6,2353.5,0.07225108]
[1727991534833,4.24918,2353.4,2353.2,0.55]
[1727991535035,4.24918,2353.4,2353.2,1.05390979]
[1727991536406,4.24918,2353.4,2353.2,0.55]
[1727991537850,4.24918,2353.4,2353.3,0.62221865]
[1727991538054,4.24899,2353.5,2353.4,0.55]
[1727991538454,4.24899,2353.5,2353.4,0.62213847]
[1727991540346,4.24895,2353.6,2353.4,0.62213847]
[1727991540786,4.24899,2353.5,2353.4,0.62213847]
[1727991543180,5.04196,2353.7,2353.4,0.62213847]
[1727991543181,4.24882,2353.6,2353.4,0.62213847]
[1727991548228,5.04196,2353.7,2353.4,0.62213847]
[1727991548530,5.546156,2353.7,2353.4,0.62213847]
[1727991551418,9.794896,2353.7,2353.4,0.62213847]
[1727991551924,5.546156,2353.7,2353.4,0.62213847]
[1727991556249,4.24899,2353.5,2353.4,0.07213847]
[1727991556542,4.24972,2353.1,2352.8,3.20122733]
[1727991556693,4.24972,2353.1,2352.8,1.87542911]
[1727991557926,0.8323,2353.2,2352.9,0.55]
[1727991558131,0.8323,2353.2,2352.6,3.64550007]
[1727991558290,4.24989,2353.0,2352.6,3.64550007]
[1727991558498,4.24989,2353.0,2352.6,7.89608007]
[1727991559461,4.24989,2353.0,2352.7,0.55]
[1727991566560,8.4999,2353.0,2352.7,0.55]
[1727991567161,4.25016,2352.9,2352.6,2.31970185]
[1727991567765,4.2503,2352.8,2352.6,2.31970185]
[1727991567946,4.2503,2352.8,2352.7,0.06870617]
[1727991568146,4.25016,2352.9,2352.7,0.06870617]
[1727991569381,4.25025,2352.8,2352.7,0.06870617]
[1727991570591,4.25016,2352.9,2352.7,0.06870617]
[1727991571273,8.50032,2352.9,2352.7,0.06870617]
[1727991571571,4.25016,2352.9,2352.7,0.06870617]
[1727991573298,8.50033,2352.9,2352.7,0.06870617]
[1727991574083,4.25016,2352.9,2352.7,0.06870617]
[1727991575057,8.50034,2352.9,2352.7,0.06870617]
[1727991576394,4.25025,2352.8,2352.7,0.06870617]
[1727991582919,5.974681,2352.8,2352.7,0.06870617]
[1727991583607,4.25121,2352.3,2352.0,1.87542911]
[1727991583763,4.25121,2352.3,2352.1,0.4259]
[1727991584105,4.25121,2352.3,2352.1,0.86989258]
[1727991584480,4.25121,2352.3,2352.1,0.44399258]
[1727991584681,4.25159,2352.1,2351.8,3.20122733]
[1727991584890,4.25159,2352.1,2351.8,1.87542911]
[1727991585202,4.25133,2352.2,2351.8,1.87542911]
[1727991585203,4.25171,2352.0,2351.8,1.87542911]
[1727991585590,8.50355,2352.0,2351.8,1.87542911]
[1727991585796,4.25171,2352.0,2351.8,1.87542911]
[1727991586683,4.25189,2351.9,2351.6,1.87542911]
[1727991587290,5.04661,2352.0,2351.6,2.30132911]
[1727991587897,4.25189,2351.9,2351.6,2.30132911]
[1727991588101,4.25189,2351.9,2351.6,1.87542911]
[1727991589766,5.04661,2352.0,2351.6,1.87542911]
[1727991589767,9.29847,2352.0,2351.6,1.87542911]
[1727991591090,9.29842,2352.0,2351.6,1.87542911]
[1727991592497,5.04661,2352.0,2351.6,1.87542911]
[1727991592688,4.25197,2351.9,2351.6,1.87542911]
[1727991595110,4.25197,2351.9,2351.4,4.70621954]
[1727991595407,4.25197,2351.9,2351.3,4.25286]
[1727991595408,4.25207,2351.8,2351.5,1.87542911]
[1727991595578,4.25207,2351.8,2351.3,4.70629954]
[1727991595579,8.50422,2351.8,2351.3,4.70629954]
[1727991595782,8.50422,2351.8,2351.4,2.42542911]
[1727991596164,4.25207,2351.8,2351.4,2.42542911]
[1727991597823,4.25207,2351.8,2351.5,0.06766366]
[1727991599003,8.50423,2351.8,2351.5,0.06766366]
[1727991599226,0.7877,2351.7,2351.5,0.06766366]
[1727991600201,4.25242,2351.6,2351.5,0.06766366]
[1727991600398,4.25264,2351.5,2351.2,1.87542911]
[1727991600699,0.7877,2351.6,2351.3,0.06782427]
[1727991600912,4.2523,2351.7,2351.2,4.25311]
[1727991601133,7.31,2352.0,2351.6,1.87542911]
[1727991601134,0.7877,2352.0,2351.6,1.87542911]
[1727991601337,4.25161,2352.1,2351.6,6.12781911]
[1727991601644,4.25161,2352.1,2351.7,0.06750307]
[1727991602029,4.25161,2352.1,2351.8,1.87542911]
[1727991602307,4.25161,2352.1,2351.9,0.06734252]
[1727991603101,4.25123,2352.3,2352.0,1.87542911]
[1727991603301,4.25136,2352.2,2352.0,1.94269136]
[1727991603527,8.50249,2352.3,2352.0,1.94269136]
[1727991604244,4.25123,2352.3,2352.0,1.94269136]
[1727991604453,4.25092,2352.5,2352.2,1.87542911]
[1727991604811,4.25062,2352.6,2352.2,2.12469825]
[1727991605212,4.25055,2352.7,2352.3,0.06698488]
[1727991605452,4.2508,2352.5,2352.3,0.06698488]
[1727991605656,4.2508,2352.5,2352.2,2.12469825]
[1727991605841,4.2508,2352.5,2352.3,0.06704143]
[1727991606155,4.2508,2352.5,2352.2,2.12469825]
[1727991606453,4.2508,2352.5,2352.4,0.06696119]
[1727991606751,4.25097,2352.4,2352.2,2.12469825]
[1727991610617,4.25115,2352.3,2352.2,1.87542911]
[1727991611012,4.25115,2352.3,2352.0,2.42542911]
[1727991612866,4.25115,2352.3,2352.1,0.06717532]
[1727991613346,8.50205,2352.4,2352.1,0.06717532]
[1727991613518,8.50205,2352.4,2352.1,0.81603]
[1727991615054,4.25097,2352.4,2352.1,0.81603]
[1727991617333,8.50206,2352.4,2352.1,0.81603]
[1727991617724,8.50204,2352.4,2352.1,0.81603]
[1727991617925,4.25097,2352.4,2352.1,0.81603]
[1727991618167,8.50204,2352.4,2352.1,0.81603]
[1727991620239,4.25097,2352.4,2352.1,0.81603]
[1727991620942,8.50205,2352.4,2352.1,0.81603]
[1727991622269,8.50205,2352.4,2352.1,0.06717532]
[1727991623132,8.50204,2352.4,2352.1,0.06717532]
[1727991623466,4.25097,2352.4,2352.1,0.06717532]
[1727991624768,8.50208,2352.4,2352.1,0.06717532]
[1727991625134,4.25097,2352.4,2352.1,0.06717532]
[1727991625749,8.50206,2352.4,2352.1,0.06717532]
[1727991626371,4.25097,2352.4,2352.1,0.06717532]
[1727991626973,4.25097,2352.4,2352.2,1.87542911]
[1727991627180,5.04506,2352.8,2352.2,1.87542911]
[1727991627181,4.25089,2352.5,2352.2,1.87542911]
[1727991627476,4.25089,2352.5,2352.3,0.06687512]
[1727991627641,4.25089,2352.5,2352.2,1.87542911]
[1727991628279,4.25089,2352.5,2352.3,0.06687512]
[1727991628684,4.25089,2352.5,2352.2,1.87542911]
[1727991628973,4.25089,2352.5,2352.3,0.06686845]
[1727991629478,4.25098,2352.4,2352.2,1.87542911]
[1727991640396,4.25073,2352.6,2352.3,1.29477603]
[1727991640561,4.25073,2352.6,2352.3,0.55]
[1727991641987,4.25043,2352.7,2352.3,0.55]
[1727991642201,5.04516,2352.8,2352.4,1.87542911]
[1727991642384,9.2955,2352.8,2352.4,1.87542911]
[1727991642591,5.04514,2352.8,2352.4,1.87542911]
[1727991642913,4.25034,2352.8,2352.5,0.13510048]
[1727991643109,8.50075,2352.8,2352.5,0.13510048]
[1727991643410,4.25034,2352.8,2352.5,0.13510048]
[1727991643709,4.25046,2352.7,2352.5,0.13510048]
[1727991644015,4.25046,2352.7,2352.6,0.55]
[1727991644315,4.25046,2352.7,2352.6,0.68501735]
[1727991645989,8.50075,2352.8,2352.6,0.68501735]
[1727991646487,4.25034,2352.8,2352.6,0.68501735]
[1727991646688,8.50068,2352.8,2352.6,0.68501735]
[1727991646895,4.25034,2352.8,2352.6,0.68501735]
[1727991647096,8.50074,2352.8,2352.6,0.68501735]
[1727991650717,4.25034,2352.8,2352.6,0.68501735]
[1727991651086,8.50072,2352.8,2352.6,0.68501735]
[1727991652400,4.25043,2352.7,2352.6,0.68501735]
[1727991654297,4.25034,2352.8,2352.6,0.68501735]
[1727991654617,8.50072,2352.8,2352.6,0.68501735]
[1727991654802,4.25043,2352.7,2352.6,0.68501735]
[1727991659831,4.25034,2352.8,2352.6,0.68501735]
[1727991660871,8.50071,2352.8,2352.6,0.68501735]
[1727991661510,4.25034,2352.8,2352.6,2.56044646]
[1727991662727,8.50069,2352.8,2352.6,2.56044646]
[1727991663141,4.25034,2352.8,2352.6,2.56044646]
[1727991663306,8.50069,2352.8,2352.6,2.56044646]
[1727991664808,8.50073,2352.8,2352.6,2.56044646]
[1727991666451,4.25043,2352.7,2352.6,2.56044646]
[1727991673574,4.25043,2352.7,2352.6,0.68501735]
[1727991673775,5.880107,2352.7,2352.6,0.13501735]
[1727991673917,0.7796,2352.6,2352.1,3.20122733]
[1727991674113,0.7796,2352.4,2352.2,1.4280985]
[1727991674335,0.7796,2352.4,2352.2,0.6833669]
[1727991683273,0.7796,2352.4,2352.2,4.9346969]
[1727991686652,0.7796,2352.4,2352.3,1.87542911]
[1727991687041,0.7796,2352.4,2352.3,2.00867625]
[1727991687382,5.07814,2352.6,2352.3,2.00867625]
[1727991704468,0.8275,2352.6,2352.3,2.00867625]
[1727991704644,0.8275,2352.6,2352.3,7.0733067]
[1727991705072,0.8275,2352.6,2352.4,0.74358167]
[1727991705370,0.8275,2352.6,2352.5,0.12867823]
[1727991705668,0.814,2352.7,2352.3,6.94005956]
[1727991706010,0.814,2352.7,2352.5,0.12867823]
[1727991706325,0.814,2352.7,2352.3,6.12648911]
[1727991706326,0.814,2352.7,2352.4,0.55]
[1727991706634,0.814,2352.7,2352.6,0.12859509]
[1727991706825,0.814,2352.7,2352.5,0.12867823]
[1727991707022,0.814,2352.7,2352.4,0.55]
[1727991707023,0.814,2352.7,2352.6,0.12859509]
[1727991707471,0.814,2352.7,2352.4,0.55]
[1727991707629,0.814,2352.7,2352.6,0.12859509]
[1727991707829,0.814,2352.7,2352.5,0.12867823]
[1727991708158,0.814,2352.7,2352.6,0.12859509]
[1727991708344,0.814,2352.7,2352.4,0.55]
[1727991708547,0.814,2352.7,2352.5,0.12867823]
[1727991710770,0.7782,2353.0,2352.5,2.68462407]
[1727991710984,0.7782,2353.0,2352.7,1.87542911]
[1727991711168,5.02773,2353.2,2352.8,0.12842884]
[1727991711371,0.7782,2353.2,2352.9,1.87542911]
[1727991711771,0.7782,2353.2,2353.0,0.12821939]
[1727991712400,5.02782,2353.2,2353.0,0.12821939]
[1727991713060,0.7782,2353.2,2353.0,0.12821939]
[1727991713262,7.31,2353.3,2353.1,0.55]
[1727991713559,7.31,2353.3,2353.2,0.12805319]
[1727991713758,4.24913,2353.5,2353.2,0.12805319]
[1727991713759,5.02733,2353.5,2353.2,0.12805319]
[1727991714099,9.2765,2353.5,2353.2,0.12805319]
[1727991714398,4.24919,2353.4,2353.2,0.12805319]
[1727991720382,4.24913,2353.5,2353.3,1.87542911]
[1727991720669,4.24913,2353.5,2353.4,0.55]
[1727991721213,4.24875,2353.7,2353.4,0.67756457]
[1727991721415,4.24885,2353.6,2353.4,0.95839876]
[1727991722207,4.24881,2353.6,2353.4,0.95839876]
[1727991726296,4.24881,2353.6,2353.4,0.67756457]
[1727991726643,5.01439,2353.5,2353.4,0.12756457]
[1727991727138,4.24921,2353.4,2353.2,0.55]
[1727991727736,9.26355,2353.5,2353.2,0.55]
[1727991727937,9.26355,2353.5,2353.2,0.79254291]
[1727991728796,5.01439,2353.5,2353.2,0.79254291]
[1727991732945,5.01439,2353.5,2353.3,0.12739172]
[1727991733433,0.7654,2353.5,2353.3,0.12739172]
[1727991739010,5.01441,2353.5,2353.3,0.12739172]
[1727991739230,5.01441,2353.5,2353.1,1.87542911]
[1727991739435,5.01441,2353.5,2353.4,0.12730864]
[1727991739639,5.01441,2353.5,2353.1,1.87542911]
[1727991739845,5.01441,2353.5,2353.4,0.12730864]
[1727991740035,5.01441,2353.5,2353.1,1.87542911]
[1727991740215,5.01441,2353.5,2353.4,0.12729867]
[1727991740415,5.01441,2353.5,2353.1,6.12509911]
[1727991740648,5.01441,2353.5,2353.4,0.12729867]
[1727991740852,0.7654,2353.5,2353.1,6.12509911]
[1727991741152,0.7654,2353.5,2353.4,0.12729867]
[1727991741357,0.7654,2353.5,2353.1,1.87542911]
[1727991741525,5.01442,2353.5,2353.2,0.12746484]
[1727991741724,5.01442,2353.5,2353.4,0.12729867]
[1727991741949,5.01442,2353.5,2353.3,0.12738175]
[1727991742156,5.01442,2353.5,2353.4,0.12729867]
[1727991742925,5.01442,2353.5,2353.1,6.12508911]
[1727991743128,5.01442,2353.5,2353.4,0.12729867]
[1727991743452,0.7654,2353.5,2353.4,0.12729867]
[1727991743672,0.7654,2353.5,2353.1,6.12508911]
[1727991743828,0.7654,2353.5,2353.4,0.12729867]
[1727991744018,0.7654,2353.5,2353.1,6.12508911]
[1727991744216,0.7654,2353.5,2353.4,0.12729867]
[1727991744416,0.7654,2353.5,2353.1,6.12508911]
[1727991744714,0.7654,2353.5,2353.4,0.12728871]
[1727991744913,0.7654,2353.5,2353.2,0.46422716]
[1727991744914,0.7654,2353.5,2353.1,6.12508911]
[1727991745113,0.7654,2353.5,2353.4,0.12728871]
[1727991745315,0.7654,2353.5,2353.1,7.46257602]
[1727991745560,0.7654,2353.5,2353.4,0.12728871]
[1727991745725,0.7654,2353.5,2353.1,6.12508911]
[1727991745934,0.7654,2353.5,2353.2,0.12745487]
[1727991749425,0.7654,2353.5,2353.3,0.46435635]
[1727991749748,4.24883,2353.6,2353.3,0.12737179]
[1727991750264,4.24883,2353.6,2353.4,0.12727541]
[1727991750777,4.24883,2353.6,2353.1,6.12508911]
[1727991750935,4.24883,2353.6,2353.5,0.12719234]
[1727991751131,4.24883,2353.6,2353.1,6.12508911]
[1727991751364,4.24883,2353.6,2353.2,0.46435761]
[1727991751524,4.24883,2353.6,2353.3,0.46435761]
[1727991751720,4.24883,2353.6,2353.2,0.12743495]
[1727991751922,5.01646,2353.7,2353.3,0.46437739]
[1727991752122,9.26526,2353.7,2353.2,4.37695495]
[1727991752354,9.26526,2353.7,2353.4,0.1272721]
[1727991752662,9.73792931,2353.7,2353.5,0.12718903]
[1727991752869,5.48912931,2353.7,2353.5,0.12718903]
[1727991753034,5.48912931,2353.7,2353.2,4.24952]
[1727991753237,5.01646,2353.7,2353.6,0.12710596]
[1727991753465,5.01646,2353.7,2353.2,4.24952]
[1727991753466,5.01646,2353.7,2353.3,0.46436416]
[1727991753653,5.01646,2353.7,2353.6,0.12710596]
[1727991753840,5.01646,2353.7,2353.3,0.46436416]
[1727991754044,5.01646,2353.7,2353.4,0.1272721]
[1727991755872,9.26524,2353.7,2353.4,0.1272721]
[1727991756176,5.01646,2353.7,2353.4,0.1272721]
[1727991756971,9.26525,2353.7,2353.4,0.1272721]
[1727991757272,5.01646,2353.7,2353.4,0.1272721]
[1727991758845,5.01646,2353.7,2353.2,4.24952]
[1727991759042,5.01646,2353.7,2353.3,0.59161261]
[1727991759257,5.01646,2353.7,2353.3,0.12735518]
[1727991760969,9.26524,2353.7,2353.3,0.12735518]
[1727991761176,5.01646,2353.7,2353.3,0.12735518]
[1727991772327,4.24894,2353.6,2353.3,0.12735518]
[1727991772478,0.7607,2353.5,2353.3,0.12735518]
[1727991782628,0.7607,2353.5,2353.1,9.82498822]
[1727991782629,0.7607,2353.5,2353.4,0.12729204]
[1727991783325,0.7607,2353.5,2353.2,4.24945]
[1727991783499,0.7607,2353.5,2353.4,0.12729204]
[1727991783700,0.75624504,2353.5,2353.3,0.12737512]
[1727991783903,0.75624504,2353.5,2353.4,0.12729204]
[1727991784298,0.75624504,2353.5,2353.2,4.24945]
[1727991784497,0.75624504,2353.5,2353.4,0.12729204]
[1727991784742,0.75624504,2353.5,2353.3,0.12737512]
[1727991785033,0.75624504,2353.5,2353.2,4.24945]
[1727991785232,0.75624504,2353.5,2353.4,0.12729204]
[1727991785403,0.75624504,2353.5,2353.3,0.12737512]
[1727991785614,0.75624504,2353.5,2353.4,0.12729204]
[1727991785801,0.75624504,2353.5,2353.2,4.24945]
[1727991786003,0.75624504,2353.5,2353.3,1.31421769]
[1727991786209,0.75624504,2353.5,2353.3,0.12737512]
[1727991788660,0.75624504,2353.5,2353.1,4.24957]
[1727991788867,5.00525504,2353.5,2353.2,0.46411968]
[1727991789161,5.00525504,2353.5,2353.3,0.59149146]
[1727991789340,5.00525504,2353.5,2353.3,0.12737178]
[1727991789670,5.00525504,2353.5,2353.1,4.24957]
[1727991789827,5.00525504,2353.5,2353.2,0.46411509]
[1727991790178,5.00525504,2353.5,2353.3,0.59148687]
[1727991790338,5.00525504,2353.5,2353.3,0.12737178]
[1727991790542,5.00525504,2353.5,2353.1,5.93900583]
[1727991790863,5.00525504,2353.5,2353.4,0.1272887]
[1727991791884,5.00525504,2353.5,2353.1,4.24957]
[1727991792190,5.00525504,2353.5,2353.2,0.12745487]
[1727991802822,4.24935,2353.3,2353.2,0.12745487]
[1727991803023,5.08065,2353.3,2353.2,0.12745487]
[1727991803224,0.8313,2353.2,2352.9,1.32579822]
[1727991803526,5.0809,2353.2,2352.8,7.45147733]
[1727991803728,5.08134,2353.0,2352.7,1.32579822]
[1727991803935,4.25008,2352.9,2352.6,1.32579822]
[1727991804100,4.25026,2352.8,2352.6,1.32579822]
[1727991804431,4.25026,2352.8,2352.5,3.64316007]
[1727991804432,0.8313,2352.7,2352.5,3.20122733]
[1727991804736,0.8313,2352.7,2352.5,1.87542911]